Cogmind - Beta 16 @@@ ROGUE MODE // 2025.12.27 @ 15:38:40 Player: Arttano Result: Destroyed self with Mini Grenade Launcher Performance ------------- Evolutions (0) 0 Regions Visited (4) 800 Robots Destroyed (25) 125 Value Destroyed (606) 606 Prototype IDs (23) 460 Alien Tech Used (0) 0 Bonus (300) 300 TOTAL SCORE: 2291 Bonus ------- Aligned with FarCom 300 Cogmind --------- Core Integrity 0/250 Matter 158/300 Energy 100/100 System Corruption 0% Temperature Cool (0) Movement Core (350) Ox6 Location -9/Mines Parts ------- > --- POWER (1) -------- (None) > --- PROPULSION (2) --- (None) > --- UTILITY (2) ------ Large Storage Unit > --- WEAPON (2) ------- Mini Grenade Launcher > --- INVENTORY (15) --- Light Ion Engine Light Nuclear Core Aluminum Leg Aluminum Leg Wheel Medium Storage Unit Weight Redist. System YOLO Cannon Rocket Launcher Rocket Launcher Peak State ------------ > --- POWER ------------ Light Ion Engine > --- PROPULSION ------- Aluminum Leg Aluminum Leg > --- UTILITY ---------- Large Storage Unit Seismic Detector > --- WEAPON ----------- Rocket Launcher Rocket Launcher > --- INVENTORY -------- Light Ion Engine Light Nuclear Core Aluminum Leg Aluminum Leg Wheel Medium Storage Unit Weight Redist. System Small Laser YOLO Cannon Assault Rifle Mini Grenade Launcher [Rating: 12] Favorites ----------- Power Light Ion Engine Engine Light Ion Engine Propulsion Aluminum Leg Treads Light Treads Leg Aluminum Leg Utility Seismic Detector Device Seismic Detector Storage Medium Storage Unit Weapon Assault Rifle Energy Gun Small Laser Ballistic Gun Assault Rifle Launcher Rocket Launcher Build | -11 -10 -10 -10 -9 ------- Run | Yrd Mat Min Exi Min Slots Evolved . | . . . . . Power . | . . . . . Propulsion . | . . . . . Utility . | . . . . . Weapon . | . . . . . Parts Attached 20 | 8 6 4 1 1 Power 4 | 1 2 1 . . Engine 4 | 1 2 1 . . Core . | . . . . . Reactor . | . . . . . Propulsion 4 | 2 2 . . . Treads 2 | 2 . . . . Leg 2 | . 2 . . . Wheel . | . . . . . Hover . | . . . . . Flight . | . . . . . Utility 6 | 2 2 1 1 . Device 2 | 1 . 1 . . Storage 4 | 1 2 . 1 . Processor . | . . . . . Hackware . | . . . . . Protection . | . . . . . Artifact . | . . . . . Weapon 6 | 3 . 2 . 1 Energy Gun 2 | 2 . . . . Energy Cannon . | . . . . . Ballistic Gun 1 | 1 . . . . Ballistic Cannon . | . . . . . Launcher 3 | . . 2 . 1 Special Weapon . | . . . . . Impact Weapon . | . . . . . Slashing Weapon . | . . . . . Piercing Weapon . | . . . . . Special Melee Weapon . | . . . . . Unidentified Prototypes . | . . . . . Parts Lost 8 | . 1 1 . 6 Power 1 | . . . . 1 Propulsion 2 | . . . . 2 Utility 2 | . . 1 . 1 Weapon 3 | . 1 . . 2 Highest Loss Streak 6 | . 1 1 . 6 To Critical Strikes . | . . . . . Average Backups 9 | 3 7 10 9 11 Power 2 | . 1 2 2 2 Propulsion 2 | 1 2 2 3 3 Utility 1 | . 1 2 2 2 Weapon 2 | . 1 2 2 4 Tool/Special . | . . . . . Unused Backups 13 | . 2 1 2 8 Power 2 | . . . . 2 Propulsion 4 | . 1 . . 3 Utility 6 | . 1 1 2 2 Weapon 1 | . . . . 1 Tool/Special . | . . . . . Average Slot Usage (%) 99 | . 99 99 100 95 Engine 14 | . 14 14 14 14 Treads 5 | . 23 . . . Leg 22 | . 4 28 28 28 Device 13 | . 14 13 14 14 Storage 14 | . 14 14 14 14 Energy Gun 12 | . 13 11 14 10 Ballistic Gun 13 | . 14 11 14 10 Launcher 1 | . . 4 . 4 Peak Build Rating 12 | 7 8 10 10 12 Average Rating 8 | 5 7 8 8 10 On Entrance 6 | . 7 8 8 10 Avg Prop Armor Cover (%) . | . . . . . Naked Turns . | . . . . . Heaviest Build 32 | 13 17 22 27 32 Greatest Support 40 | 40 40 20 20 20 Greatest Overweight (x) 1 | 1 . 1 1 1 Average Overweight (x) . | . . . . 1 Largest Inventory Capacity 25 | 8 25 10 15 15 Average Capacity 10 | 7 8 10 11 15 Most Carried 12 | 6 10 10 12 12 Average Carried 9 | 3 7 9 10 11 Final Capacity 15 | 8 10 10 15 15 Final Carried 12 | 5 10 10 12 11 Class Distribution -------------------- 100% | Mutant Dominant Class ---------------- Mutant | -10/Materials Mutant | -10/Mines Mutant | -10/Exiles Mutant | -9/Mines Resources | -11 -10 -10 -10 -9 ----------- Run | Yrd Mat Min Exi Min Matter Collected 745 | 292 209 244 . . Remotely . | . . . . . Salvage Created 781 | 57 460 202 . 62 Parts 43 | 6 28 5 . 4 Haulers Intercepted 1 | . 1 . . . Recyclers Shooed . | . . . . . Parts Field Recycled . | . . . . . Retrieved Matter . | . . . . . Parts Self-Destructed . | . . . . . Prevented . | . . . . . Parts Restored . | . . . . . Kills | -11 -10 -10 -10 -9 ------- Run | Yrd Mat Min Exi Min Combat Hostiles Destroyed 17 | . 10 5 . 2 Guns 11 | . 9 2 . . AOE 6 | . 1 3 . 2 Classes Destroyed 9 | 1 5 1 . 2 Worker 1 | . . . . 1 Tunneler 4 | 3 . . . 1 Hauler 1 | . 1 . . . Recycler 2 | . 1 1 . . Operator 1 | . 1 . . . Swarmer 3 | . 3 . . . Grunt 12 | . 7 4 . 1 Duelist 1 | . . . . 1 Assembled 1 | . . 1 . . Best Kill Streak 4 | 1 4 4 . 2 Combat Bots Only 3 | . 3 3 . 1 Max Kills in Single Turn 1 | 1 1 1 . 1 Gunslinging . | . . . . . Exploded 1 | . 1 1 . 1 Melee . | . . . . . Uniques/NPCs Destroyed . | . . . . . Combat | -11 -10 -10 -10 -9 -------- Run | Yrd Mat Min Exi Min Hostile Shots Fired 80 | . 50 17 . 13 Missed 22 | . 12 7 . 3 Hits 58 | . 38 10 . 10 Melee 8 | . . . . 8 Projectile 50 | . 38 10 . 2 Critical Strikes 3 | . 1 1 . 1 Damage Taken 1142 | . 492 237 . 413 Core 252 | . 135 21 . 96 Absorbed by Shields . | . . . . . Core Remaining (%) 100 | 100 . . . . Volleys Fired 74 | 7 40 16 . 11 Largest 2 | 2 2 2 . 2 Hottest 80 | 80 60 66 . 66 Shots Fired 141 | 14 80 32 . 15 Gun 123 | 14 80 22 . 7 Cannon . | . . . . . Launcher 18 | . . 10 . 8 Special . | . . . . . Kinetic 57 | 4 40 11 . 2 Thermal 48 | 3 29 11 . 5 Explosive 18 | . . 10 . 8 Electromagnetic 18 | 7 11 . . . Robot Hit Streak 11 | 6 9 11 . 8 Robot Miss Streak 3 | 2 2 3 . 1 Penetration Max . | . . . . . Secondary Targets 1 | . 1 . . . Max Gunslinging Chain 1 | . 1 . . . Shots Hit Robots 91 | 9 49 21 . 12 Core Hits 48 | 3 24 13 . 8 Critical Kills . | . . . . . Critical Parts Destroyed . | . . . . . Critical Strikes . | . . . . . Melee Attacks . | . . . . . Impact . | . . . . . Slashing . | . . . . . Piercing . | . . . . . Sneak Attacks . | . . . . . Combat Hostiles . | . . . . . Follow-up Attacks . | . . . . . Damage Inflicted 1882 | 118 725 613 . 426 Guns 1019 | 118 581 236 . 84 Cannons . | . . . . . Explosions 863 | . 144 377 . 342 Melee . | . . . . . Ramming . | . . . . . Kinetic 442 | 24 267 123 . 28 Thermal 534 | 23 342 113 . 56 Explosive 719 | . . 377 . 342 Electromagnetic 187 | 71 116 . . . Impact . | . . . . . Slashing . | . . . . . Piercing . | . . . . . Highest Corruption . | . . . . . Average Corruption . | . . . . . Corruption Purged . | . . . . . Corruption Blocked . | . . . . . Overload Shots . | . . . . . Overflow Damage 35 | . 8 . . 27 Projectiles . | . . . . . Explosions 35 | . 8 . . 27 Melee . | . . . . . Knockbacks . | . . . . . Impact . | . . . . . Kinetic . | . . . . . Secondary . | . . . . . Self-Inflicted Damage 260 | . 46 78 . 136 Shots 7 | . 1 3 . 3 Rammed . | . . . . . Targets Rammed . | . . . . . Kicked . | . . . . . Crushed . | . . . . . Highest Temperature 81 | 54 64 81 . 24 Average Temperature 30 | 28 33 29 . 13 Received Heat Transfer 345 | . 225 108 . 12 Siege Activations . | . . . . . Martial Activations . | . . . . . Shielding Activations . | . . . . . Robots Disrupted . | . . . . . Combat Hostiles . | . . . . . Robots Corrupted . | . . . . . Combat Hostiles . | . . . . . Parts Fried . | . . . . . Impact Corruptions . | . . . . . Robots Melted . | . . . . . Combat Hostiles . | . . . . . Parts Melted . | . . . . . Heat Transferred 1025 | 50 600 250 . 125 Parts Sabotaged . | . . . . . Parts Stolen . | . . . . . Parts Stripped . | . . . . . Power Chain Reactions 1 | . 1 . . . Alert | -11 -10 -10 -10 -9 ------- Run | Yrd Mat Min Exi Min Maximum Alert Level . | . . . . . Low Security (%) 100 | 100 100 100 . 100 Level 1 . | . . . . . Level 2 . | . . . . . Level 3 . | . . . . . Level 4 . | . . . . . Level 5 . | . . . . . High Security . | . . . . . Max Security . | . . . . . Peak Influence 122 | 5 122 110 . 45 Initial 16 | . . 16 . . Average 33 | . 67 17 . 12 Influence Increases 591 | 15 302 169 . 105 Destroy 0b10 Robot/C 320 | . 200 80 . 40 Destroy 0b10 Robot/NC 45 | 15 15 5 . 10 Destroy Leader 72 | . 42 20 . 10 Successful Hack 22 | . 22 . . . Disable Machine 15 | . 15 . . . Destroy Structure 117 | . 8 64 . 45 Influence Decreases 566 | 15 260 211 . 80 Entered New Map 26 | . . 26 . . Time Decay 464 | 15 250 179 . 20 Lost Part 76 | . 10 6 . 60 Squads Dispatched 3 | . 3 . . . Investigation 1 | . 1 . . . Extermination . | . . . . . Reinforcement 2 | . 2 . . . Assault . | . . . . . Garrison . | . . . . . Intercept . | . . . . . Searches Triggered . | . . . . . Construction Impeded . | . . . . . Haulers Reinforced . | . . . . . Active Scanning Responses . | . . . . . Cargo Convoy Interrupts . | . . . . . Stealth | -11 -10 -10 -10 -9 --------- Run | Yrd Mat Min Exi Min Distress Signals 1 | . 1 . . . Communications Jammed . | . . . . . Distress Signals . | . . . . . Times Spotted 25 | . 18 5 . 2 Peak Tracking Total 4 | . 4 3 . 2 Tactical Retreats . | . . . . . Traps | -11 -10 -10 -10 -9 ------- Run | Yrd Mat Min Exi Min Traps Triggered . | . . . . . Indirectly . | . . . . . Trap Hack Attempts . | . . . . . Triggered . | . . . . . Disarmed . | . . . . . Reprogrammed . | . . . . . Reused . | . . . . . Traps Extracted . | . . . . . Installed . | . . . . . Triggered . | . . . . . Machines | -11 -10 -10 -10 -9 ---------- Run | Yrd Mat Min Exi Min Machines Disabled 1 | . 1 . . . Max in Single Turn 1 | . 1 . . . Machines Repaired . | . . . . . Machines Dismantled . | . . . . . Machines Sabotaged . | . . . . . Overloaded Fab Kills . | . . . . . Hacking | -11 -10 -10 -10 -9 --------- Run | Yrd Mat Min Exi Min Machines Accessed 11 | . 5 1 5 . Terminals 6 | . 5 1 . . Fabricators . | . . . . . Repair Stations . | . . . . . Recycling Units . | . . . . . Scanalyzers . | . . . . . Garrison Access . | . . . . . Total Hacks 62 | . 9 3 50 . Successful 54 | . 4 . 50 . Failed 8 | . 5 3 . . Catastrophic 1 | . 1 . . . Database Lockouts . | . . . . . Manual 13 | . 9 3 1 . Terminals 12 | . 9 3 . . Fabricators . | . . . . . Repair Stations . | . . . . . Recycling Units . | . . . . . Scanalyzers . | . . . . . Garrison Access . | . . . . . Terminal Hacks 54 | . 4 . 50 . Record 49 | . . . 49 . Robot Analysis 2 | . 2 . . . Terminal Index 1 | . 1 . . . Hauler Manifests 1 | . 1 . . . Proto ID Catalog 1 | . . . 1 . Fabricator Hacks . | . . . . . Repair Station Hacks . | . . . . . Recycling Unit Hacks . | . . . . . Scanalyzer . | . . . . . Garrison Access Hacks . | . . . . . Unauthorized Hacks . | . . . . . Terminals . | . . . . . Fabricators . | . . . . . Repair Stations . | . . . . . Recycling Units . | . . . . . Scanalyzers . | . . . . . Garrison Access . | . . . . . Data Cores Recovered . | . . . . . Used . | . . . . . Hacking Detections 4 | . 3 1 . . Full Trace Events 2 | . 1 1 . . Feedback Events . | . . . . . Feedback Blocked . | . . . . . Robot Schematics Acquired . | . . . . . Robots Built . | . . . . . Authchips . | . . . . . Time . | . . . . . Total Robot Build Rating . | . . . . . Part Schematics Acquired . | . . . . . Parts Built . | . . . . . Authchips . | . . . . . Time . | . . . . . Total Part Build Rating . | . . . . . Part Studies Acquired . | . . . . . Parts Repaired . | . . . . . Time . | . . . . . Parts Recycled . | . . . . . Recycled Matter . | . . . . . Retrieved Matter . | . . . . . Retrieved Components . | . . . . . Parts Scanalyzed . | . . . . . Part Schematics Acquired . | . . . . . Parts Damaged . | . . . . . Bothacking | -11 -10 -10 -10 -9 ------------ Run | Yrd Mat Min Exi Min Used RIF Installer . | . . . . . Robots Hacked . | . . . . . Non-combat . | . . . . . Combat . | . . . . . Robot Hacks Applied . | . . . . . Relay Couplers Released . | . . . . . Fabnet Peak Effective % . | . . . . . Robots Rewired . | . . . . . Allies Hacked . | . . . . . Hacks Repelled . | . . . . . Allies | -11 -10 -10 -10 -9 -------- Run | Yrd Mat Min Exi Min Total Allies 1 | . . 1 . . Largest Group 1 | . . 1 1 . Highest-Rated Group 31 | . . 31 31 . Highest-Rated Ally 31 | . . 31 31 . Total Orders . | . . . . . Ally Attacks . | . . . . . Total Damage . | . . . . . Kills . | . . . . . Allies Corrupted . | . . . . . Allies Melted . | . . . . . Intel | -11 -10 -10 -10 -9 ------- Run | Yrd Mat Min Exi Min Active Infowar (turns) 2846 | 14 656 965 1143 68 Seismic 2846 | 14 656 965 1143 68 Robot Analysis Total 2 | . 2 . . . Derelict Logs Recovered 1 | . . 1 . . Drone Launches . | . . . . . Drone Recoveries . | . . . . . Exploration | -11 -10 -10 -10 -9 ------------- Run | Yrd Mat Min Exi Min Turns Passed 3038 | 157 656 1014 1143 68 Spaces Moved 1977 | 76 329 718 836 18 Core 4 | 4 . . . . Treads 326 | 72 254 . . . Legs 1647 | . 75 718 836 18 Wheels . | . . . . . Hover . | . . . . . Flight . | . . . . . Fastest Speed 50 | 50 120 120 120 190 Average Speed 136 | 154 150 128 135 190 Slowest Speed 190 | 160 160 190 190 190 Overloaded Moves . | . . . . . Propulsion Burnouts . | . . . . . Robots Hopped . | . . . . . Potential Cave-ins . | . . . . . Cave-ins Triggered . | . . . . . Exploration Rate (%) 51 | 5 45 98 94 15 Regions Visited 4 Branch Regions 3 Pre-discovered Areas 2 | . . 1 1 . Known Exits Taken . | . . . . . Unknown Exits Taken 4 | 1 1 1 1 . Scrap Searched 1 | . . 1 . . Spaces Dug . | . . . . . Terrain Destroyed 154 | . 6 95 . 53 Melee . | . . . . . Projectile . | . . . . . AOE 154 | . 6 95 . 53 Terrain Rammed . | . . . . . Walls Destroyed . | . . . . . Machines Disabled . | . . . . . Actions | -11 -10 -10 -10 -9 --------- Run | Yrd Mat Min Exi Min Total 2171 | 98 408 781 848 36 Wait 50 | 1 18 29 2 . Move 1973 | 75 328 717 835 18 Hop . | . . . . . Pick Up 25 | 7 8 4 5 1 Fast Attach 6 | 5 . 1 . . Attach 5 | 2 1 . . 2 Detach . | . . . . . Swap 19 | 1 7 6 1 4 Drop 16 | . 6 5 5 . Fire 74 | 7 40 16 . 11 Melee . | . . . . . Ram . | . . . . . Kick . | . . . . . Crush . | . . . . . Escape Stasis . | . . . . . Rewire 3 | . . 3 . . Trap . | . . . . . Miscellaneous . | . . . . . Route ------- -11/Scrapyard -10/Materials -10/Mines (discovered 4 exits: [*Mat x2] / *Exi / [*Sub]) -10/Exiles (discovered 2 exits: [*Min x2]) -9/Mines (discovered 1 exit: [*Mat]) History --------- Turn | Location | Event 13 | -11/Scrapyard | Discovered new exit (range 15) 158 | -11/Scrapyard | Entered Materials 317 | -10/Materials | Build established: Mutant 584 | -10/Materials | Core integrity fell below 50% 778 | -10/Materials | Discovered new exit (range 6) 814 | -10/Materials | Entered Mines 826 | -10/Mines | Found a hidden stash of uninstalled traps 849 | -10/Mines | Learned location of Storage (-8) 972 | -10/Mines | Discovered new exit (range 7) 1030 | -10/Mines | Assembled infested the area 1136 | -10/Mines | Discovered new exit (range 15) 1531 | -10/Mines | Discovered new exit (range 6) 1719 | -10/Mines | Received a Mining Laser from a helpful Derelict 1822 | -10/Mines | Discovered new exit (range 5) 1828 | -10/Mines | Entered Exiles 1828 | -10/Exiles | Accompanied by 1 ally 1849 | -10/Exiles | Discovered new exit (range 15) 1876 | -10/Exiles | Met 8R-AWN 1900 | -10/Exiles | Met EX-HEX 1966 | -10/Exiles | Met EX-DEC 1993 | -10/Exiles | Visited The Gauntlet 2217 | -10/Exiles | Learned location of Zion (-7) 2265 | -10/Exiles | Discovered new exit (range 14) 2367 | -10/Exiles | Met EX-BIN 2390 | -10/Exiles | Aligned with FarCom system 2391 | -10/Exiles | Given EX-Vault access code 2461 | -10/Exiles | Opened EX-Vault 2485 | -10/Exiles | Found YOLO Cannon 2510 | -10/Exiles | Warned to stay clear of 0b10 Research branches 2971 | -10/Exiles | Left Exiles lab with YOLO Cannon 2971 | -10/Exiles | Entered Mines 2989 | -9/Mines | Discovered new exit (range 10) 2999 | -9/Mines | Received a Rocket Launcher from a helpful Derelict 3022 | -9/Mines | Core integrity fell below 20% 3039 | -9/Mines | Destroyed self with Mini Grenade Launcher Last Messages --------------- 03022_ U-05 Engineer lays Concrete. 03027_ The unstable cave ceiling collapses. 03028_ K-01 Serf collects debris. 03028_ U-05 Engineer lays Concrete. 03029_ Sml. Laser destroyed. 03030_ U-05 Engineer lays Concrete. 03031_ T-07 Excavator destroyed. 03031_ Aluminum Leg destroyed. 03032_ U-05 Engineer lays Concrete. 03034_ Rocket Launcher severed. 03035_ Acquired Rocket Launcher. 03035_ U-05 Engineer lays Concrete. 03037_ Destroyed Imp. Aluminum Leg. 03037_ Lgt. Ion Engine destroyed. 03037_ Destroyed Lgt. Ion Engine. 03037_ U-05 Engineer lays Concrete. 03039_ Aluminum Leg destroyed. 03039_ L-31 Rogue destroyed. 03039_ Seismic Detector destroyed. 03039_ Destroyed Seismic Detector. Map ----- +----------------------------------------------------+ | ????????????????????????????????????????? | | ????????????????????????????????????????? | | ????????????????????????????????????????? | | ????????????????????????????????????????? | | ????????????????????????????????????????? | | ????????????????????????????????????????? | | ????????????????????????????????????????? | | ????????????????????????????????????????? | | ????????????????????????????????????????? | | ????????????????????????????????????????? | | ????????????????????????????????????????? | | ?????????????????????? ?????????????????? | | ?????????????????????? ?????????????????? | | ??????????????#?????? ?????????????????? | | ??????????????# ????? #?? #????????????? | | ??????????????# ????? ## #????????????? | | ??????????????# ????? # #???????????? | | ??????????????# ???? #???????????? | | ??????????????# ???? #???????????? | | ??????????????# ???? #???????????? | | ??????????????# #### # ### ????????? | | ?????????????## u ???????? | | ???????####### % "???????? | | ???????# r "???????? | | ??####?# < t "???????? | | ?## ### #??# @ # ??????? | | ?# ## ##?## % #?????????? | | ?# ##?# ##?????????? | | ?# #?# # ###??????????? | | ?## ### # ##? ## #????????????? | | ??## ####???#???????????????? | | ???# ##??????????????????????? | | ??# #### #???????????????????????? | | ?# ###??# #??????????????????????? | | ?# ##????# #??????????????????????? | | ?# #?????# #??????????????????????? | | ?## ##?????## ##??????????????????????? | | ??###????????####???????????????????????? | | ????????????????????????????????????????? | | ????????????????????????????????????????? | | ????????????????????????????????????????? | | ????????????????????????????????????????? | | | | | | | | | | | | | | | | | +----------------------------------------------------+ Best States ------------- Heat Dissipation 25 Energy Generation 10 Energy Capacity 125 Matter Stores 300 Matter Capacity 300 Sight Range 16 Terrain Scan Density 10 Evasion (%) 55 Recoil Reduction 2 Item Schematics ----------------- None Robot Schematics ------------------ None Fabricated ------------ Nothing Repaired ---------- Nothing Studied --------- None Alien Tech Used ----------------- None Achievements -------------- Deductive Reasoning Librarian Sixth Sense Challenges ------------ None Game ------ Seed IonWeightArchive Manual? 0 Play Time 00:45:00 Cumulative 6.5 hours Start 2025.12.26 @ 22:53:35 End 2025.12.27 @ 15:38:40 Sessions 4 Manual Loads 0 Difficulty Rogue Special Mode None Game No. 10 Rogue 10 Adventurer 0 Explorer 0 Win Type - Total 0 Types 0/0/0/0/0/0/0/0/0/0 Lore% 10 Gallery% 8 Achievement% 11 Wizard Run 0 Options --------- Layout 2 ASCII 0 Keyboard 0 Movement Numpad Keybinds 0 Fullscreen 2 Font 24/Smallcaps Map View 50x44 Zoom Use 0% Tactical HUD 1 Map Filters NONE Filters NONE Steam 1 RUN: a85268c7-6053-4ee3-beee-1ed699ed78d7